{"text_format":"1","workbook":"xlsx","n_sheets":2,"sheets":["Proposition_v03","PlageOccup"],"not_rendered":{"charts":0,"images":0,"macros":1,"external_links":0,"defined_names":23,"comments":1,"pivot_tables":0},"unopened":[],"bounds":{"document_bytes":16777216,"sheet_cells":100000,"rows_first":2000,"rows_last":500,"rows_between":2000,"halvings":0,"cell_chars":16384,"cell_head_chars":4096},"cells_cut":0,"cells_raw":0,"read":"whole","date_system":"1900"}

{"sheet":"Proposition_v03","index":0,"n_rows":17,"n_cols":41,"rows_kept":17,"cut":false,"hidden":false,"merged":[]}
["Nom client","N° plaque","Dimension pneu","Emplacement pneu","Pos empl","Dimention","Nb de pneu","Extraction de la largeur","Taille totale necessaire ","repris ou pas","phone","mail","adresse",null,null,null,null,null,null,null,null,null,null,null,null,null,null,null,null,null,null,null,null,null,null,null,null,null,0,1,{"$f":"COUNTIF(G2:G26,\">0\")","v":3}]
["client 2","azerty3","165/80 R14 85 T","bleu_1_A",1,"5 cm",2,{"$f":"LEFT(C2,3)","v":"165"},{"$f":"H2*G2","v":330}]
["client 3","azerty4","165/80 R14 85 T","bleu_1_A",2,"40 cm",4,"165",{"$f":"H3*G3","v":660},null,null,null,null,null,null,null,"155*4","225*4","325*4"]
["client 4","azerty5","175/80 R14 85 T","bleu_1_A",3,"110 cm",4,"175",700,null,null,null,null,null,null,null,"165*2","235*2","335*2"]
["client 5","azerty6","185/80 R14 85 T",null,4,null,0,"185",0,null,null,null,null,null,null,null,"165*4","235*4","335*4 "]
["client 6","azerty7","195/80 R14 85 T",null,5,null,0,"195",0,null,null,null,null,null,null,null,"175*2","245*2"]
["client 7","azerty8","125/80 R14 85 T",null,6,null,0,"125",0,null,null,null,null,null,null,null,"175*4","245*4"]
["client 8","azerty9","145/80 R14 85 T",null,7,null,0,"145",0,null,null,null,null,null,null,null,"185*2","255*2"]
["client 9","azerty10","165/80 R14 85 T",null,8,null,0,"165",0,null,null,null,null,null,null,null,"185*4","255*4"]
["client 10","azerty11","165/80 R14 85 T",null,9,null,0,"165",0,null,null,null,null,null,null,null,"195*2","265*2"]
["client 11","azerty12","165/80 R14 85 T",null,10,null,0,"165",0,null,null,null,null,null,null,null,"195*4","265*4"]
["client 12","azerty13","175/80 R14 85 T",null,11,null,0,"175",0,null,null,null,null,null,null,null,null,"275*2"]
["client 13","azerty14","185/80 R14 85 T",null,12,null,0,"185",0,null,null,null,null,null,null,null,null,"275*4"]
["client 14","azerty15","145/80 R14 85 T",null,13,null,null,"145",0,null,null,null,null,null,null,null,null,"285*2"]
["client 15","azerty16","165/80 R14 85 T",null,14,null,null,null,null,null,null,null,null,null,null,null,null,"285*4"]
[null,null,null,null,null,null,null,null,null,null,null,null,null,null,null,null,null,"295*2"]
[null,null,null,null,null,null,null,null,null,null,null,null,null,null,null,null,null,"295*4"]

{"sheet":"PlageOccup","index":1,"n_rows":18,"n_cols":165,"rows_kept":18,"cut":false,"hidden":false,"merged":[]}
["nom hangard","emplacement disponible","solde",5,10,15,20,25,30,35,40,45,50,55,60,65,70,75,80,85,90,95,100,105,110,115,120,125,130,135,140,145,150,155,160,165,170,175,180,185,190,195,200,205,210,215,220,225,230,235,240,245,250,255,260,265,270,275,280,285,290,295,300,305,310,315,320,325,330,335,340,345,350,355,360,365,370,375,380,385,390,395,400,405,410,415,420,425,430,435,440,445,450,455,460,465,470,475,480,485,490,495,500,505,510,515,520,525,530,535,540,545,550,555,560,565,570,575,580,585,590,595,600,605,610,615,620,625,630,635,640,645,650,655,660,665,670,675,680,685,690,695,700,705,710,715,720,725,730,735,740,745,750,755,760,765,770,775,780,785,790,795,800,805,810]
["bleu_1_A",4500,{"$f":"(COLUMNS(bleu_1_A)-COUNTA(bleu_1_A))*5&\" cm\"","v":"275 cm"},1,1,1,1,1,1,1,2,2,2,2,2,2,2,2,2,2,2,2,2,2,3,3,3,3,3,3,3,3,3,3,3,3,3,3,null,null,null,null,null,null,null,null,null,null,null,null,null,null,null,null,null,null,null,null,null,null,null,null,null,null,null,null,null,null,null,null,null,null,null,null,null,null,null,null,null,null,null,null,null,null,null,null,null,null,null,null,null,null,null,null,null,null,null,null,null,null,{"$f":"COUNTIF(D2:CV2,\">0\")","v":35}]
["bleu_1_B",4600,{"$f":"(COLUMNS(bleu_1_B)-COUNTA(bleu_1_B))*5&\" cm\"","v":"460 cm"},null,null,null,null,null,null,null,null,null,null,null,null,null,null,null,null,null,null,null,null,null,null,null,null,null,null,null,null,null,null,null,null,null,null,null,null,null,null,null,null,null,null,null,null,null,null,null,null,null,null,null,null,null,null,null,null,null,null,null,null,null,null,null,null,null,null,null,null,null,null,null,null,null,null,null,null,null,null,null,null,null,null,null,null,null,null,null,null,null,null,null,null,null,null,null,null,null,{"$f":"COUNTIF(D3:CV3,\">0\")","v":0}]
["bleu_1_C",1250,{"$f":"(COLUMNS(bleu_1_C)-COUNTA(bleu_1_C))*5&\" cm\"","v":"125 cm"},null,null,null,null,null,null,null,null,null,null,null,null,null,null,null,null,null,null,null,null,null,null,null,null,null,null,null,null,null,null,null,null,null,null,null,null,null,null,null,null,null,null,null,null,null,null,null,null,null,null,null,null,null,null,null,null,null,null,null,null,null,null,null,null,null,null,null,null,null,null,null,null,null,null,null,null,null,null,null,null,null,null,null,null,null,null,null,null,null,null,null,null,null,null,null,null,null,0]
["bleu_1_D",4580,{"$f":"(COLUMNS(bleu_1_D)-COUNTA(bleu_1_D))*5&\" cm\"","v":"455 cm"},null,null,null,null,null,null,null,null,null,null,null,null,null,null,null,null,null,null,null,null,null,null,null,null,null,null,null,null,null,null,null,null,null,null,null,null,null,null,null,null,null,null,null,null,null,null,null,null,null,null,null,null,null,null,null,null,null,null,null,null,null,null,null,null,null,null,null,null,null,null,null,null,null,null,null,null,null,null,null,null,null,null,null,null,null,null,null,null,null,null,null,null,null,null,null,null,null,0]
["bleu_2_A",2150,{"$f":"(COLUMNS(bleu_2_A)-COUNTA(bleu_2_A))*5&\" cm\"","v":"215 cm"},null,null,null,null,null,null,null,null,null,null,null,null,null,null,null,null,null,null,null,null,null,null,null,null,null,null,null,null,null,null,null,null,null,null,null,null,null,null,null,null,null,null,null,null,null,null,null,null,null,null,null,null,null,null,null,null,null,null,null,null,null,null,null,null,null,null,null,null,null,null,null,null,null,null,null,null,null,null,null,null,null,null,null,null,null,null,null,null,null,null,null,null,null,null,null,null,null,0]
["bleu_2_B",2150,{"$f":"(COLUMNS(bleu_2_B)-COUNTA(bleu_2_B))*5&\" cm\"","v":"215 cm"},null,null,null,null,null,null,null,null,null,null,null,null,null,null,null,null,null,null,null,null,null,null,null,null,null,null,null,null,null,null,null,null,null,null,null,null,null,null,null,null,null,null,null,null,null,null,null,null,null,null,null,null,null,null,null,null,null,null,null,null,null,null,null,null,null,null,null,null,null,null,null,null,null,null,null,null,null,null,null,null,null,null,null,null,null,null,null,null,null,null,null,null,null,null,null,null,null,0]
["bleu_2_C",1470,{"$f":"(COLUMNS(bleu_2_C)-COUNTA(bleu_2_C))*5&\" cm\"","v":"145 cm"},null,null,null,null,null,null,null,null,null,null,null,null,null,null,null,null,null,null,null,null,null,null,null,null,null,null,null,null,null,null,null,null,null,null,null,null,null,null,null,null,null,null,null,null,null,null,null,null,null,null,null,null,null,null,null,null,null,null,null,null,null,null,null,null,null,null,null,null,null,null,null,null,null,null,null,null,null,null,null,null,null,null,null,null,null,null,null,null,null,null,null,null,null,null,null,null,null,0]
["bleu_2_D",2386,{"$f":"(COLUMNS(bleu_2_D)-COUNTA(bleu_2_D))*5&\" cm\"","v":"235 cm"},null,null,null,null,null,null,null,null,null,null,null,null,null,null,null,null,null,null,null,null,null,null,null,null,null,null,null,null,null,null,null,null,null,null,null,null,null,null,null,null,null,null,null,null,null,null,null,null,null,null,null,null,null,null,null,null,null,null,null,null,null,null,null,null,null,null,null,null,null,null,null,null,null,null,null,null,null,null,null,null,null,null,null,null,null,null,null,null,null,null,null,null,null,null,null,null,null,0]
["bleu_3_A",1250,{"$f":"(COLUMNS(bleu_3_A)-COUNTA(bleu_3_A))*5&\" cm\"","v":"125 cm"},null,null,null,null,null,null,null,null,null,null,null,null,null,null,null,null,null,null,null,null,null,null,null,null,null,null,null,null,null,null,null,null,null,null,null,null,null,null,null,null,null,null,null,null,null,null,null,null,null,null,null,null,null,null,null,null,null,null,null,null,null,null,null,null,null,null,null,null,null,null,null,null,null,null,null,null,null,null,null,null,null,null,null,null,null,null,null,null,null,null,null,null,null,null,null,null,null,0]
["bleu_3_B",4580,{"$f":"(COLUMNS(bleu_3_B)-COUNTA(bleu_3_B))*5&\" cm\"","v":"455 cm"},null,null,null,null,null,null,null,null,null,null,null,null,null,null,null,null,null,null,null,null,null,null,null,null,null,null,null,null,null,null,null,null,null,null,null,null,null,null,null,null,null,null,null,null,null,null,null,null,null,null,null,null,null,null,null,null,null,null,null,null,null,null,null,null,null,null,null,null,null,null,null,null,null,null,null,null,null,null,null,null,null,null,null,null,null,null,null,null,null,null,null,null,null,null,null,null,null,0]
["bleu_3_C",2150,{"$f":"(COLUMNS(bleu_3_C)-COUNTA(bleu_3_C))*5&\" cm\"","v":"215 cm"},null,null,null,null,null,null,null,null,null,null,null,null,null,null,null,null,null,null,null,null,null,null,null,null,null,null,null,null,null,null,null,null,null,null,null,null,null,null,null,null,null,null,null,null,null,null,null,null,null,null,null,null,null,null,null,null,null,null,null,null,null,null,null,null,null,null,null,null,null,null,null,null,null,null,null,null,null,null,null,null,null,null,null,null,null,null,null,null,null,null,null,null,null,null,null,null,null,0]
[null,null,null,null,null,null,null,null,null,null,null,null,null,null,null,null,null,null,null,null,null,null,null,null,null,null,null,null,null,null,null,null,null,null,null,null,null,null,null,null,null,null,null,null,null,null,null,null,null,null,null,null,null,null,null,null,null,null,null,null,null,null,null,null,null,null,null,null,null,null,null,null,null,null,null,null,null,null,null,null,null,null,null,null,null,null,null,null,null,null,null,null,null,null,null,null,null,null,null,null,0]
[null,null,null,null,null,null,null,null,null,null,null,null,null,null,null,null,null,null,null,null,null,null,null,null,null,null,null,null,null,null,null,null,null,null,null,null,null,null,null,null,null,null,null,null,null,null,null,null,null,null,null,null,null,null,null,null,null,null,null,null,null,null,null,null,null,null,null,null,null,null,null,null,null,null,null,null,null,null,null,null,null,null,null,null,null,null,null,null,null,null,null,null,null,null,null,null,null,null,null,null,0]
[null,null,null,null,null,null,null,null,null,null,null,null,null,null,null,null,null,null,null,null,null,null,null,null,null,null,null,null,null,null,null,null,null,null,null,null,null,null,null,null,null,null,null,null,null,null,null,null,null,null,null,null,null,null,null,null,null,null,null,null,null,null,null,null,null,null,null,null,null,null,null,null,null,null,null,null,null,null,null,null,null,null,null,null,null,null,null,null,null,null,null,null,null,null,null,null,null,null,null,null,0]
[null,null,null,null,null,null,null,null,null,null,null,null,null,null,null,null,null,null,null,null,null,null,null,null,null,null,null,null,null,null,null,null,null,null,null,null,null,null,null,null,null,null,null,null,null,null,null,null,null,null,null,null,null,null,null,null,null,null,null,null,null,null,null,null,null,null,null,null,null,null,null,null,null,null,null,null,null,null,null,null,null,null,null,null,null,null,null,null,null,null,null,null,null,null,null,null,null,null,null,null,0]
[null,null,null,null,null,null,null,null,null,null,null,null,null,null,null,null,null,null,null,null,null,null,null,null,null,null,null,null,null,null,null,null,null,null,null,null,null,null,null,null,null,null,null,null,null,null,null,null,null,null,null,null,null,null,null,null,null,null,null,null,null,null,null,null,null,null,null,null,null,null,null,null,null,null,null,null,null,null,null,null,null,null,null,null,null,null,null,null,null,null,null,null,null,null,null,null,null,null,null,null,0]
[null,null,null,null,null,null,null,null,null,null,null,null,null,null,null,null,null,null,null,null,null,null,null,null,null,null,null,null,null,null,null,null,null,null,null,null,null,null,null,null,null,null,null,null,null,null,null,null,null,null,null,null,null,null,null,null,null,null,null,null,null,null,null,null,null,null,null,null,null,null,null,null,null,null,null,null,null,null,null,null,null,null,null,null,null,null,null,null,null,null,null,null,null,null,null,null,null,null,null,null,0]